[Event "Late-Titled-Tuesday-Blitz-September-05-2023"]
[Site "Chess.com"]
[Date "2023.09.05"]
[Round "5"]
[White "Andreikka"]
[Black "Durarbayli"]
[Result "0-1"]
[WhiteElo "3008"]
[BlackElo "2888"]
[TimeControl "180+1"]
[EndTime "14:57:46 PDT"]
[Termination "Durarbayli won on time"]

1. Nf3 {[%clk 0:03:00]} 1... c5 {[%clk 0:02:59.7]} 2. e4 {[%clk 0:02:57.4]} 2...
d6 {[%clk 0:02:59.3]} 3. Bb5+ {[%clk 0:02:56.5]} 3... Nd7 {[%clk 0:02:58.8]} 4.
O-O {[%clk 0:02:56.3]} 4... Nf6 {[%clk 0:02:58.8]} 5. Re1 {[%clk 0:02:56.2]}
5... a6 {[%clk 0:02:58.8]} 6. Bf1 {[%clk 0:02:56.8]} 6... e6 {[%clk 0:02:56.8]}
7. c3 {[%clk 0:02:56.8]} 7... b6 {[%clk 0:02:56.4]} 8. d4 {[%clk 0:02:56.9]}
8... Be7 {[%clk 0:02:53.6]} 9. d5 {[%clk 0:02:35.9]} 9... e5 {[%clk 0:02:51.8]}
10. a4 {[%clk 0:02:33]} 10... Nf8 {[%clk 0:02:50]} 11. h3 {[%clk 0:02:29.3]}
11... Ng6 {[%clk 0:02:49.7]} 12. b4 {[%clk 0:02:29.7]} 12... O-O {[%clk
0:02:46.8]} 13. Nbd2 {[%clk 0:02:29.7]} 13... Bd7 {[%clk 0:02:33.8]} 14. bxc5
{[%clk 0:02:28.6]} 14... bxc5 {[%clk 0:02:30]} 15. Nc4 {[%clk 0:02:28.5]} 15...
Qc7 {[%clk 0:02:22.3]} 16. Qc2 {[%clk 0:02:19.5]} 16... Rfb8 {[%clk 0:02:19.6]}
17. Be3 {[%clk 0:02:19]} 17... h6 {[%clk 0:02:10.5]} 18. a5 {[%clk 0:02:12.5]}
18... Bd8 {[%clk 0:01:48.8]} 19. Nb6 {[%clk 0:02:10.1]} 19... Ra7 {[%clk
0:01:49.3]} 20. Reb1 {[%clk 0:02:06]} 20... Be8 {[%clk 0:01:49]} 21. Nd2 {[%clk
0:02:04.8]} 21... Nh7 {[%clk 0:01:35.2]} 22. Rb2 {[%clk 0:01:52.6]} 22... Bg5
{[%clk 0:01:33.6]} 23. Bxg5 {[%clk 0:01:48.1]} 23... Nxg5 {[%clk 0:01:33.7]} 24.
Rab1 {[%clk 0:01:48.8]} 24... Nf4 {[%clk 0:01:25]} 25. h4 {[%clk 0:01:48.4]}
25... Nh7 {[%clk 0:01:20.8]} 26. g3 {[%clk 0:01:48.8]} 26... Ng6 {[%clk
0:01:21.2]} 27. Bc4 {[%clk 0:01:42.2]} 27... Qd8 {[%clk 0:01:11.9]} 28. Qd3
{[%clk 0:01:42.3]} 28... Bd7 {[%clk 0:00:53.7]} 29. Bxa6 {[%clk 0:01:35.2]}
29... Bg4 {[%clk 0:00:44.2]} 30. Ra2 {[%clk 0:00:53.9]} 30... Nxh4 {[%clk
0:00:38.5]} 31. gxh4 {[%clk 0:00:54.8]} 31... Qxh4 {[%clk 0:00:38.8]} 32. Bc4
{[%clk 0:00:55.4]} 32... Ng5 {[%clk 0:00:19.3]} 33. Qg3 {[%clk 0:00:55.7]} 33...
Nh3+ {[%clk 0:00:19.4]} 34. Kf1 {[%clk 0:00:42.5]} 34... Qh5 {[%clk 0:00:19.8]}
35. Qh2 {[%clk 0:00:37.8]} 35... Qg6 {[%clk 0:00:17.6]} 36. Be2 {[%clk
0:00:29.8]} 36... Bxe2+ {[%clk 0:00:14]} 37. Kxe2 {[%clk 0:00:29.9]} 37... Nf4+
{[%clk 0:00:14.9]} 38. Kf1 {[%clk 0:00:28]} 38... f5 {[%clk 0:00:14.7]} 39. f3
{[%clk 0:00:20.4]} 39... fxe4 {[%clk 0:00:11.1]} 40. Nxe4 {[%clk 0:00:20.7]}
40... Rf8 {[%clk 0:00:11.3]} 41. Qg3 {[%clk 0:00:17.7]} 41... Qh5 {[%clk
0:00:11]} 42. Rh2 {[%clk 0:00:17.8]} 42... Qf5 {[%clk 0:00:08.5]} 43. Re1 {[%clk
0:00:15]} 43... Rxa5 {[%clk 0:00:08.2]} 44. Rxh6 {[%clk 0:00:15.1]} 44... Ra2
{[%clk 0:00:08.2]} 45. Rh2 {[%clk 0:00:06.9]} 45... Rxh2 {[%clk 0:00:08]} 46.
Qxh2 {[%clk 0:00:07.8]} 46... Nd3 {[%clk 0:00:08.6]} 47. Re3 {[%clk 0:00:07.8]}
47... Nf4 {[%clk 0:00:06.4]} 48. Nc4 {[%clk 0:00:05.3]} 48... Ra8 {[%clk
0:00:07]} 49. Re1 {[%clk 0:00:03.1]} 49... Nd3 {[%clk 0:00:06.5]} 50. Re3 {[%clk
0:00:02.2]} 50... Ra1+ {[%clk 0:00:06.7]} 51. Ke2 {[%clk 0:00:02.9]} 51... Ra2+
{[%clk 0:00:06.1]} 52. Ncd2 {[%clk 0:00:03]} 52... Nf4+ {[%clk 0:00:04.9]} 53.
Kf2 {[%clk 0:00:03.8]} 53... Ra1 {[%clk 0:00:05.1]} 54. Ng3 {[%clk 0:00:02]}
54... Qc2 {[%clk 0:00:04.8]} 55. Nf1 {[%clk 0:00:02.9]} 55... Qd1 {[%clk
0:00:05]} 56. Qh4 {[%clk 0:00:03]} 56... Ra2 {[%clk 0:00:05.5]} 57. Qd8+ {[%clk
0:00:03.1]} 57... Kh7 {[%clk 0:00:06.3]} 58. Qh4+ {[%clk 0:00:03.7]} 58... Kg8
{[%clk 0:00:06.8]} 59. Qd8+ {[%clk 0:00:04]} 59... Kh7 {[%clk 0:00:07.4]} 60.
Qh4+ {[%clk 0:00:04.1]} 60... Kg6 {[%clk 0:00:07.9]} 61. Qg4+ {[%clk 0:00:04.5]}
61... Kf7 {[%clk 0:00:08.2]} 62. Qd7+ {[%clk 0:00:04.7]} 62... Kg8 {[%clk
0:00:08.8]} 63. Qe8+ {[%clk 0:00:02.6]} 63... Kh7 {[%clk 0:00:09.3]} 64. Re1
{[%clk 0:00:02.5]} 64... Rxd2+ {[%clk 0:00:08.9]} 65. Nxd2 {[%clk 0:00:02.8]}
65... Qxd2+ {[%clk 0:00:09.8]} 0-1

[Event "Late-Titled-Tuesday-Blitz-September-05-2023"]
[Site "Chess.com"]
[Date "2023.09.05"]
[Round "5"]
[White "IMSlavin"]
[Black "Dontmesswithme_2"]
[Result "0-1"]
[WhiteElo "2169"]
[BlackElo "2489"]
[TimeControl "180+1"]
[EndTime "14:57:51 PDT"]
[Termination "Dontmesswithme_2 won by resignation"]

1. e4 {[%clk 0:02:59.8]} 1... c5 {[%clk 0:02:55.5]} 2. g3 {[%clk 0:02:59.2]}
2... Nc6 {[%clk 0:02:54.8]} 3. Bg2 {[%clk 0:02:59.3]} 3... g6 {[%clk 0:02:54.9]}
4. Ne2 {[%clk 0:02:59.5]} 4... Bg7 {[%clk 0:02:55.2]} 5. O-O {[%clk 0:02:59.8]}
5... d6 {[%clk 0:02:55.4]} 6. Nbc3 {[%clk 0:03:00]} 6... e6 {[%clk 0:02:54.1]}
7. a3 {[%clk 0:02:59.7]} 7... Nge7 {[%clk 0:02:53.9]} 8. Rb1 {[%clk 0:03:00.4]}
8... b6 {[%clk 0:02:51.3]} 9. b4 {[%clk 0:02:59.3]} 9... Bb7 {[%clk 0:02:50.3]}
10. d3 {[%clk 0:02:58.8]} 10... O-O {[%clk 0:02:49.6]} 11. Bd2 {[%clk
0:02:55.9]} 11... Rb8 {[%clk 0:02:48.5]} 12. Qc1 {[%clk 0:02:54.1]} 12... Qd7
{[%clk 0:02:42.4]} 13. Bh6 {[%clk 0:02:53.2]} 13... Nd4 {[%clk 0:02:40.6]} 14.
Bxg7 {[%clk 0:02:51.5]} 14... Kxg7 {[%clk 0:02:41.4]} 15. Nxd4 {[%clk
0:02:42.1]} 15... cxd4 {[%clk 0:02:42.3]} 16. Ne2 {[%clk 0:02:42.8]} 16... e5
{[%clk 0:02:41.8]} 17. c4 {[%clk 0:02:40.3]} 17... dxc3 {[%clk 0:02:37]} 18.
Nxc3 {[%clk 0:02:39.3]} 18... d5 {[%clk 0:02:34.7]} 19. exd5 {[%clk 0:02:36.9]}
19... Nxd5 {[%clk 0:02:35.6]} 20. Ne4 {[%clk 0:02:23.9]} 20... f5 {[%clk
0:02:27]} 21. Ng5 {[%clk 0:02:20.2]} 21... h6 {[%clk 0:02:25.6]} 22. Nf3 {[%clk
0:02:18.8]} 22... Rfe8 {[%clk 0:02:16.8]} 23. Re1 {[%clk 0:02:17.1]} 23... e4
{[%clk 0:01:59.6]} 24. dxe4 {[%clk 0:02:16.1]} 24... fxe4 {[%clk 0:01:59.6]} 25.
Qb2+ {[%clk 0:02:15.2]} 25... Kh7 {[%clk 0:01:57.2]} 26. Ne5 {[%clk 0:01:56.6]}
26... Qc7 {[%clk 0:01:44.8]} 27. Rxe4 {[%clk 0:01:45.9]} 27... Nc3 {[%clk
0:01:43.8]} 28. Rc4 {[%clk 0:01:42.3]} 28... Qxe5 {[%clk 0:01:40.6]} 29. Qxc3
{[%clk 0:01:36.3]} 29... Qxc3 {[%clk 0:01:26.9]} 30. Rxc3 {[%clk 0:01:34.4]}
30... Bxg2 {[%clk 0:01:26.5]} 31. Kxg2 {[%clk 0:01:34.1]} 31... Rb7 {[%clk
0:01:24.6]} 32. Rbc1 {[%clk 0:01:33]} 32... Ree7 {[%clk 0:01:24.5]} 33. h4
{[%clk 0:01:31.7]} 33... h5 {[%clk 0:01:20.6]} 34. b5 {[%clk 0:01:27.5]} 34...
Rbd7 {[%clk 0:01:20.1]} 35. Rc8 {[%clk 0:01:07.6]} 35... Rf7 {[%clk 0:01:19.7]}
36. R1c2 {[%clk 0:01:06.2]} 36... Rd3 {[%clk 0:01:17.9]} 37. R8c3 {[%clk
0:01:04]} 37... Rd5 {[%clk 0:01:13.8]} 38. a4 {[%clk 0:01:02.9]} 38... Rdd7
{[%clk 0:01:12.5]} 39. Rc4 {[%clk 0:01:00.3]} 39... Kh6 {[%clk 0:01:11]} 40. Re2
{[%clk 0:00:58.9]} 40... Kg7 {[%clk 0:01:07.1]} 41. Re6 {[%clk 0:00:59.1]} 41...
Rd2 {[%clk 0:01:04.2]} 42. Rf4 {[%clk 0:00:56.7]} 42... Rxf4 {[%clk 0:01:03.1]}
43. gxf4 {[%clk 0:00:57.6]} 43... Rd4 {[%clk 0:00:55.3]} 44. Re7+ {[%clk
0:00:56.9]} 44... Kf6 {[%clk 0:00:55.1]} 45. Rxa7 {[%clk 0:00:57.6]} 45... Rxf4
{[%clk 0:00:55]} 46. Kg3 {[%clk 0:00:57.4]} 46... Rg4+ {[%clk 0:00:54.1]} 47.
Kh3 {[%clk 0:00:57.4]} 47... Kf5 {[%clk 0:00:53.8]} 48. Rb7 {[%clk 0:00:54.5]}
48... Rxa4 {[%clk 0:00:52.8]} 49. Rxb6 {[%clk 0:00:54]} 49... Ra2 {[%clk
0:00:47.6]} 50. Kg2 {[%clk 0:00:53.3]} 50... Ra4 {[%clk 0:00:47.2]} 51. Kg3
{[%clk 0:00:52.5]} 51... Rg4+ {[%clk 0:00:46.5]} 52. Kh3 {[%clk 0:00:51.7]}
52... Rf4 {[%clk 0:00:43.8]} 53. Kg3 {[%clk 0:00:50.1]} 53... Rg4+ {[%clk
0:00:41.7]} 54. Kh3 {[%clk 0:00:49.4]} 54... Rb4 {[%clk 0:00:25.9]} 55. Rb8
{[%clk 0:00:47.2]} 55... Kf4 {[%clk 0:00:21]} 56. Rg8 {[%clk 0:00:39.4]} 56...
Rb3+ {[%clk 0:00:18.9]} 57. Kg2 {[%clk 0:00:38.4]} 57... Kf5 {[%clk 0:00:15.8]}
58. Rf8+ {[%clk 0:00:37.9]} 58... Kg4 {[%clk 0:00:15.3]} 59. Rg8 {[%clk
0:00:37.3]} 59... Rxb5 {[%clk 0:00:12.2]} 60. Rxg6+ {[%clk 0:00:36.9]} 60...
Kxh4 {[%clk 0:00:11.9]} 61. Rg8 {[%clk 0:00:34.8]} 61... Rb3 {[%clk 0:00:11.3]}
62. Rg7 {[%clk 0:00:33.4]} 62... Ra3 {[%clk 0:00:11.2]} 63. Rg6 {[%clk
0:00:32.7]} 63... Ra4 {[%clk 0:00:11.3]} 64. Rg7 {[%clk 0:00:32.5]} 64... Rf4
{[%clk 0:00:10.7]} 65. Rg6 {[%clk 0:00:31.7]} 65... Ra4 {[%clk 0:00:08.3]} 66.
Rg8 {[%clk 0:00:31.1]} 66... Rb4 {[%clk 0:00:08.9]} 67. Rg7 {[%clk 0:00:30.4]}
67... Rc4 {[%clk 0:00:09.5]} 68. Re7 {[%clk 0:00:29.5]} 68... Rg4+ {[%clk
0:00:08.6]} 69. Kh2 {[%clk 0:00:27]} 69... Rf4 {[%clk 0:00:09.1]} 70. Kg2 {[%clk
0:00:26.5]} 70... Rg4+ {[%clk 0:00:09.3]} 71. Kh2 {[%clk 0:00:26.5]} 71... Ra4
{[%clk 0:00:08.8]} 72. Re4+ {[%clk 0:00:25.2]} 72... Rxe4 {[%clk 0:00:07.8]} 73.
Kg2 {[%clk 0:00:24.7]} 73... Rg4+ {[%clk 0:00:07.8]} 0-1

[Event "Late-Titled-Tuesday-Blitz-September-05-2023"]
[Site "Chess.com"]
[Date "2023.09.05"]
[Round "5"]
[White "MKlose11"]
[Black "Murad_Ibrahimli"]
[Result "0-1"]
[WhiteElo "2633"]
[BlackElo "2920"]
[TimeControl "180+1"]
[EndTime "14:57:58 PDT"]
[Termination "Murad_Ibrahimli won by resignation"]

1. e4 {[%clk 0:03:00.9]} 1... e5 {[%clk 0:02:59.4]} 2. Nf3 {[%clk 0:03:00.7]}
2... Nc6 {[%clk 0:03:00]} 3. d4 {[%clk 0:03:01.6]} 3... exd4 {[%clk 0:02:59.9]}
4. Bc4 {[%clk 0:03:01.5]} 4... Bc5 {[%clk 0:02:54.1]} 5. Ng5 {[%clk 0:02:59.3]}
5... Ne5 {[%clk 0:02:53.7]} 6. Nxf7 {[%clk 0:02:58.9]} 6... Nxf7 {[%clk
0:02:54.3]} 7. Bxf7+ {[%clk 0:02:59.1]} 7... Kxf7 {[%clk 0:02:55.2]} 8. Qh5+
{[%clk 0:02:59.7]} 8... g6 {[%clk 0:02:54.8]} 9. Qxc5 {[%clk 0:03:00.6]} 9... d5
{[%clk 0:02:39.5]} 10. Qxd4 {[%clk 0:02:54.1]} 10... Nf6 {[%clk 0:02:20.9]} 11.
e5 {[%clk 0:02:53.3]} 11... Ne4 {[%clk 0:02:17]} 12. O-O {[%clk 0:02:43.7]}
12... c5 {[%clk 0:02:07.9]} 13. Qd1 {[%clk 0:02:42.4]} 13... c4 {[%clk
0:01:49.5]} 14. f3 {[%clk 0:02:39.5]} 14... Nc5 {[%clk 0:01:49.4]} 15. Nc3
{[%clk 0:02:33.4]} 15... Be6 {[%clk 0:01:49.5]} 16. Be3 {[%clk 0:02:31.2]} 16...
b6 {[%clk 0:01:44.4]} 17. Qd2 {[%clk 0:02:29.1]} 17... Qc7 {[%clk 0:01:21.7]}
18. Nb5 {[%clk 0:02:22.8]} 18... Qc6 {[%clk 0:01:11.7]} 19. Nd6+ {[%clk
0:02:16]} 19... Kg8 {[%clk 0:01:08]} 20. Bd4 {[%clk 0:01:59.6]} 20... Rf8 {[%clk
0:01:03.6]} 21. Rae1 {[%clk 0:01:56.9]} 21... Qd7 {[%clk 0:00:57.1]} 22. Be3
{[%clk 0:01:54.5]} 22... h5 {[%clk 0:00:55]} 23. Bg5 {[%clk 0:01:52.3]} 23...
Rh7 {[%clk 0:00:49.8]} 24. Bh6 {[%clk 0:01:42.5]} 24... Ra8 {[%clk 0:00:45.8]}
25. Bg5 {[%clk 0:01:42.6]} 25... Rf8 {[%clk 0:00:44.8]} 26. b4 {[%clk
0:01:36.9]} 26... Nb7 {[%clk 0:00:43.1]} 27. Nxb7 {[%clk 0:01:27.8]} 27... Qxb7
{[%clk 0:00:44]} 28. c3 {[%clk 0:01:25]} 28... Rhf7 {[%clk 0:00:35.9]} 29. Bf6
{[%clk 0:01:24.5]} 29... Rh7 {[%clk 0:00:31.7]} 30. Qd4 {[%clk 0:01:22.2]} 30...
Qd7 {[%clk 0:00:30.4]} 31. Qd2 {[%clk 0:01:15.7]} 31... Kf7 {[%clk 0:00:29.6]}
32. Rd1 {[%clk 0:01:15.6]} 32... Rc8 {[%clk 0:00:27.2]} 33. Qc2 {[%clk
0:01:14.6]} 33... Bf5 {[%clk 0:00:25.2]} 34. Qf2 {[%clk 0:01:10.8]} 34... Be6
{[%clk 0:00:25.7]} 35. Rfe1 {[%clk 0:01:11.2]} 35... Kg8 {[%clk 0:00:25.2]} 36.
Ra1 {[%clk 0:01:11.3]} 36... Rf7 {[%clk 0:00:19.6]} 37. a4 {[%clk 0:01:10.6]}
37... d4 {[%clk 0:00:19.7]} 38. cxd4 {[%clk 0:01:05.7]} 38... c3 {[%clk
0:00:20]} 39. Rac1 {[%clk 0:00:53.5]} 39... Kh7 {[%clk 0:00:20.2]} 40. Qc2
{[%clk 0:00:51.7]} 40... Qxd4+ {[%clk 0:00:18.6]} 41. Kh1 {[%clk 0:00:48.6]}
41... Qd2 {[%clk 0:00:18.5]} 42. a5 {[%clk 0:00:27.1]} 42... b5 {[%clk
0:00:14.3]} 43. Re2 {[%clk 0:00:23.6]} 43... Qxc2 {[%clk 0:00:12.7]} 44. Rexc2
{[%clk 0:00:24.5]} 44... Rfc7 {[%clk 0:00:12.9]} 45. h3 {[%clk 0:00:20.5]} 45...
Bb3 {[%clk 0:00:12.1]} 46. Re2 {[%clk 0:00:19.9]} 46... Be6 {[%clk 0:00:08.5]}
47. Bg5 {[%clk 0:00:19.6]} 47... c2 {[%clk 0:00:08.2]} 48. Rd2 {[%clk
0:00:20.2]} 48... Rd7 {[%clk 0:00:05.7]} 49. Rd6 {[%clk 0:00:17.1]} 49... Rxd6
{[%clk 0:00:05.9]} 50. exd6 {[%clk 0:00:18]} 50... Rc6 {[%clk 0:00:06.5]} 51.
Kg1 {[%clk 0:00:15.8]} 51... Kg7 {[%clk 0:00:05.3]} 52. Kf2 {[%clk 0:00:15.8]}
52... Kf7 {[%clk 0:00:06]} 53. Ke3 {[%clk 0:00:15.8]} 53... Bb3 {[%clk
0:00:06.3]} 54. Bf4 {[%clk 0:00:11.9]} 54... Ke6 {[%clk 0:00:06.7]} 55. Kd2
{[%clk 0:00:11.3]} 55... Kd7 {[%clk 0:00:07.1]} 56. Re1 {[%clk 0:00:11.3]} 56...
Rc4 {[%clk 0:00:05.8]} 57. Bg3 {[%clk 0:00:05.9]} 57... Rd4+ {[%clk 0:00:06.2]}
58. Kc1 {[%clk 0:00:04.7]} 58... Rd1+ {[%clk 0:00:06.5]} 59. Kb2 {[%clk
0:00:04.9]} 59... c1=Q+ {[%clk 0:00:06.9]} 60. Kxb3 {[%clk 0:00:05.6]} 60...
Rxe1 {[%clk 0:00:07.3]} 61. Bxe1 {[%clk 0:00:04.3]} 61... Qxe1 {[%clk
0:00:08.2]} 62. Kc2 {[%clk 0:00:04.4]} 62... Qe3 {[%clk 0:00:08.6]} 0-1

[Event "Late-Titled-Tuesday-Blitz-September-05-2023"]
[Site "Chess.com"]
[Date "2023.09.05"]
[Round "5"]
[White "colegiodemadrid"]
[Black "Athanasios2"]
[Result "1-0"]
[WhiteElo "2509"]
[BlackElo "2707"]
[TimeControl "180+1"]
[EndTime "14:57:59 PDT"]
[Termination "colegiodemadrid won on time"]

1. e4 {[%clk 0:03:00.2]} 1... c5 {[%clk 0:02:59.5]} 2. Nf3 {[%clk 0:03:00.5]}
2... d6 {[%clk 0:02:58.5]} 3. d4 {[%clk 0:03:00.7]} 3... cxd4 {[%clk 0:02:59.4]}
4. Nxd4 {[%clk 0:03:01.4]} 4... Nf6 {[%clk 0:02:59.7]} 5. Nc3 {[%clk 0:03:01.7]}
5... g6 {[%clk 0:03:00.3]} 6. Be3 {[%clk 0:03:01.5]} 6... Bg7 {[%clk 0:02:59.5]}
7. f3 {[%clk 0:03:01.6]} 7... Nc6 {[%clk 0:02:59.7]} 8. Qd2 {[%clk 0:03:01.9]}
8... O-O {[%clk 0:02:59.8]} 9. O-O-O {[%clk 0:03:02.3]} 9... Bd7 {[%clk
0:03:00]} 10. g4 {[%clk 0:02:59.9]} 10... Ne5 {[%clk 0:02:59.5]} 11. Be2 {[%clk
0:02:58.8]} 11... Rc8 {[%clk 0:02:59.1]} 12. h4 {[%clk 0:02:59.1]} 12... h5
{[%clk 0:02:59.1]} 13. g5 {[%clk 0:02:58.5]} 13... Ne8 {[%clk 0:02:59.2]} 14.
Kb1 {[%clk 0:02:57.3]} 14... Nc7 {[%clk 0:02:56.5]} 15. f4 {[%clk 0:02:45.2]}
15... Ng4 {[%clk 0:02:55.1]} 16. Bg1 {[%clk 0:02:42.8]} 16... e5 {[%clk
0:02:47.6]} 17. Nb3 {[%clk 0:02:33.3]} 17... Be6 {[%clk 0:01:53.7]} 18. f5
{[%clk 0:02:26.7]} 18... gxf5 {[%clk 0:01:54.1]} 19. exf5 {[%clk 0:02:26.7]}
19... Bxf5 {[%clk 0:01:54.6]} 20. Qxd6 {[%clk 0:02:26.7]} 20... Qxd6 {[%clk
0:01:50.3]} 21. Rxd6 {[%clk 0:02:27.5]} 21... b6 {[%clk 0:01:28.2]} 22. Bf3
{[%clk 0:02:20.9]} 22... Ne6 {[%clk 0:01:26.2]} 23. Ne4 {[%clk 0:02:15.7]} 23...
Rfd8 {[%clk 0:01:18.1]} 24. Rxd8+ {[%clk 0:02:00.6]} 24... Rxd8 {[%clk
0:01:16.9]} 25. Kc1 {[%clk 0:02:01.3]} 25... Nd4 {[%clk 0:01:08.6]} 26. Nxd4
{[%clk 0:01:56.8]} 26... exd4 {[%clk 0:01:09.5]} 27. Ng3 {[%clk 0:01:51.8]}
27... Be6 {[%clk 0:00:48.5]} 28. Nxh5 {[%clk 0:01:48]} 28... Be5 {[%clk
0:00:45.8]} 29. Bxg4 {[%clk 0:01:25.8]} 29... Bxg4 {[%clk 0:00:45.3]} 30. Nf6+
{[%clk 0:01:26.1]} 30... Bxf6 {[%clk 0:00:45.9]} 31. gxf6 {[%clk 0:01:26.9]}
31... d3 {[%clk 0:00:29.1]} 32. cxd3 {[%clk 0:01:22.9]} 32... Rxd3 {[%clk
0:00:30]} 33. Bh2 {[%clk 0:01:19.2]} 33... Rh3 {[%clk 0:00:22.1]} 34. Rg1 {[%clk
0:01:18.1]} 34... Rxh2 {[%clk 0:00:20.8]} 35. Rxg4+ {[%clk 0:01:17.5]} 35... Kf8
{[%clk 0:00:21.5]} 36. Rc4 {[%clk 0:01:15.3]} 36... Ke8 {[%clk 0:00:20.6]} 37.
Rc7 {[%clk 0:01:14.3]} 37... Rxh4 {[%clk 0:00:18.2]} 38. Re7+ {[%clk 0:01:13]}
38... Kf8 {[%clk 0:00:16.7]} 39. Rxa7 {[%clk 0:01:13]} 39... Kg8 {[%clk
0:00:17]} 40. Rb7 {[%clk 0:01:10.8]} 40... Rb4 {[%clk 0:00:17.5]} 41. a3 {[%clk
0:01:09.6]} 41... Rb5 {[%clk 0:00:17.6]} 42. b4 {[%clk 0:01:09.4]} 42... Kh7
{[%clk 0:00:12.8]} 43. Rxf7+ {[%clk 0:01:08.2]} 43... Kg6 {[%clk 0:00:13.5]} 44.
Rf8 {[%clk 0:01:07.4]} 44... Rf5 {[%clk 0:00:12.5]} 45. Kc2 {[%clk 0:01:07.2]}
45... Rf3 {[%clk 0:00:11.9]} 46. Kb2 {[%clk 0:01:06.9]} 46... b5 {[%clk
0:00:09.8]} 47. f7 {[%clk 0:01:01.4]} 47... Kg7 {[%clk 0:00:09.3]} 48. Rb8
{[%clk 0:01:01.3]} 48... Rf2+ {[%clk 0:00:09.8]} 49. Kc3 {[%clk 0:00:59.9]}
49... Rf3+ {[%clk 0:00:10.4]} 50. Kd4 {[%clk 0:00:58.7]} 50... Kxf7 {[%clk
0:00:11]} 51. Rxb5 {[%clk 0:00:53.4]} 51... Rxa3 {[%clk 0:00:11.6]} 52. Re5
{[%clk 0:00:52.9]} 52... Rb3 {[%clk 0:00:07.4]} 53. Kc5 {[%clk 0:00:52.4]} 53...
Rc3+ {[%clk 0:00:06.7]} 54. Kb6 {[%clk 0:00:52.3]} 54... Kf6 {[%clk 0:00:06.9]}
55. Re1 {[%clk 0:00:51.9]} 55... Rb3 {[%clk 0:00:04.6]} 56. b5 {[%clk 0:00:51]}
56... Rb2 {[%clk 0:00:02.9]} 57. Kc6 {[%clk 0:00:49.9]} 57... Rc2+ {[%clk
0:00:03.2]} 58. Kb7 {[%clk 0:00:49.6]} 58... Rb2 {[%clk 0:00:02.2]} 59. b6
{[%clk 0:00:49.8]} 59... Rc2 {[%clk 0:00:02.7]} 60. Ka8 {[%clk 0:00:49.3]} 60...
Ra2+ {[%clk 0:00:02.8]} 61. Kb8 {[%clk 0:00:48.9]} 61... Rb2 {[%clk 0:00:03.3]}
62. b7 {[%clk 0:00:49.1]} 62... Kf7 {[%clk 0:00:04.1]} 63. Rc1 {[%clk
0:00:48.5]} 63... Ke7 {[%clk 0:00:02.7]} 64. Kc8 {[%clk 0:00:48.5]} 64... Rh2
{[%clk 0:00:01.7]} 65. b8=Q {[%clk 0:00:47.4]} 65... Rh8+ {[%clk 0:00:02.6]} 66.
Kb7 {[%clk 0:00:47.5]} 66... Rxb8+ {[%clk 0:00:02.8]} 67. Kxb8 {[%clk
0:00:47.8]} 67... Kd6 {[%clk 0:00:03.7]} 68. Kb7 {[%clk 0:00:47.3]} 68... Kd5
{[%clk 0:00:04.6]} 69. Kb6 {[%clk 0:00:47.2]} 69... Kd4 {[%clk 0:00:05.5]} 70.
Kb5 {[%clk 0:00:47.2]} 70... Kd3 {[%clk 0:00:06.4]} 71. Kb4 {[%clk 0:00:47.3]}
71... Kd2 {[%clk 0:00:07.3]} 72. Rc3 {[%clk 0:00:47.6]} 72... Ke2 {[%clk
0:00:07.5]} 73. Ra3 {[%clk 0:00:47.7]} 73... Kd2 {[%clk 0:00:08.4]} 74. Kc4
{[%clk 0:00:47.6]} 74... Ke2 {[%clk 0:00:09]} 75. Kd4 {[%clk 0:00:47.8]} 75...
Kf2 {[%clk 0:00:09.8]} 76. Ke4 {[%clk 0:00:47.9]} 76... Kg2 {[%clk 0:00:10.7]}
77. Kf4 {[%clk 0:00:48]} 77... Kh2 {[%clk 0:00:11.5]} 78. Kg4 {[%clk 0:00:48.2]}
78... Kg2 {[%clk 0:00:10.2]} 79. Ra2+ {[%clk 0:00:48.3]} 79... Kf1 {[%clk
0:00:07.5]} 80. Kg3 {[%clk 0:00:48.2]} 80... Ke1 {[%clk 0:00:08.4]} 81. Kf3
{[%clk 0:00:48.4]} 81... Kd1 {[%clk 0:00:09.3]} 82. Ke3 {[%clk 0:00:48.6]} 82...
Kc1 {[%clk 0:00:09.5]} 83. Rg2 {[%clk 0:00:49]} 83... Kb1 {[%clk 0:00:10.4]} 84.
Rh2 {[%clk 0:00:49.6]} 84... Kc1 {[%clk 0:00:10.4]} 85. Kd3 {[%clk 0:00:50.3]}
85... Kb1 {[%clk 0:00:10.8]} 86. Kc3 {[%clk 0:00:50.5]} 86... Ka1 {[%clk
0:00:11.7]} 87. Kb3 {[%clk 0:00:50.6]} 1-0